[Event "*** SCC Grand Prix: Titled Tuesday Blitz"]
[Site "Chess.com"]
[Date "2020.09.29"]
[Round "7"]
[White "GameOverBro"]
[Black "K_A_S_T_O_R"]
[Result "0-1"]
[WhiteElo "2552"]
[BlackElo "2716"]
[TimeControl "180+1"]
[EndTime "11:17:04 PDT"]
[Termination "K_A_S_T_O_R won by resignation"]

1. e4 {[%clk 0:03:00.9]} 1... c5 {[%clk 0:02:59.4]} 2. Ne2 {[%clk 0:03:00.6]}
2... d6 {[%clk 0:02:56.3]} 3. g3 {[%clk 0:03:00.5]} 3... Nc6 {[%clk 0:02:53.9]}
4. Bg2 {[%clk 0:03:00.9]} 4... g6 {[%clk 0:02:48.5]} 5. c3 {[%clk 0:03:00.7]}
5... Bg7 {[%clk 0:02:43.7]} 6. d4 {[%clk 0:03:00.9]} 6... e5 {[%clk 0:02:40.5]}
7. Be3 {[%clk 0:02:58.6]} 7... Qe7 {[%clk 0:02:38.3]} 8. O-O {[%clk 0:02:53.7]}
8... Nf6 {[%clk 0:02:37.2]} 9. f3 {[%clk 0:02:28.6]} 9... O-O {[%clk 0:02:32]}
10. Na3 {[%clk 0:02:18.2]} 10... b6 {[%clk 0:02:26.6]} 11. Qd2 {[%clk
0:02:12.7]} 11... Ba6 {[%clk 0:02:24.5]} 12. d5 {[%clk 0:02:09.3]} 12... Nb8
{[%clk 0:02:23.1]} 13. c4 {[%clk 0:02:05.6]} 13... Bc8 {[%clk 0:02:20.5]} 14. h3
{[%clk 0:02:02.3]} 14... h5 {[%clk 0:02:06.2]} 15. g4 {[%clk 0:01:58]} 15...
Nbd7 {[%clk 0:02:00.2]} 16. Nb5 {[%clk 0:01:54.2]} 16... a6 {[%clk 0:01:54.2]}
17. Nbc3 {[%clk 0:01:53.5]} 17... hxg4 {[%clk 0:01:51.7]} 18. fxg4 {[%clk
0:01:46.4]} 18... Nh7 {[%clk 0:01:51.4]} 19. Ng3 {[%clk 0:01:43.4]} 19... Bf6
{[%clk 0:01:50.9]} 20. Bh6 {[%clk 0:01:40.4]} 20... Re8 {[%clk 0:01:45.6]} 21.
Rf3 {[%clk 0:01:34.8]} 21... Bg5 {[%clk 0:01:44.5]} 22. Bxg5 {[%clk 0:01:33.2]}
22... Nxg5 {[%clk 0:01:44.2]} 23. Rf2 {[%clk 0:01:29.2]} 23... Nh7 {[%clk
0:01:41.6]} 24. Raf1 {[%clk 0:01:27.3]} 24... Rf8 {[%clk 0:01:41.8]} 25. Qh6
{[%clk 0:01:25]} 25... Qg5 {[%clk 0:01:35.9]} 26. Qxg5 {[%clk 0:01:17.4]} 26...
Nxg5 {[%clk 0:01:36.4]} 27. h4 {[%clk 0:01:14.8]} 27... Nh7 {[%clk 0:01:36.3]}
28. h5 {[%clk 0:01:06]} 28... Kg7 {[%clk 0:01:35.3]} 29. hxg6 {[%clk 0:00:59.6]}
29... fxg6 {[%clk 0:01:34.9]} 30. Nd1 {[%clk 0:00:54.9]} 30... Ndf6 {[%clk
0:01:32.5]} 31. Ne3 {[%clk 0:00:39.3]} 31... Bd7 {[%clk 0:01:31.2]} 32. Bf3
{[%clk 0:00:31.8]} 32... Ng5 {[%clk 0:01:30.5]} 33. Kg2 {[%clk 0:00:30.9]} 33...
Rh8 {[%clk 0:01:26.8]} 34. a3 {[%clk 0:00:20]} 34... a5 {[%clk 0:01:21]} 35. Bd1
{[%clk 0:00:18.3]} 35... Raf8 {[%clk 0:01:18.8]} 36. b4 {[%clk 0:00:16.9]} 36...
axb4 {[%clk 0:01:16]} 37. axb4 {[%clk 0:00:17.8]} 37... cxb4 {[%clk 0:01:06.1]}
38. Rb2 {[%clk 0:00:17]} 38... Nfxe4 {[%clk 0:01:05.1]} 39. Rxf8 {[%clk
0:00:16.3]} 39... Rxf8 {[%clk 0:01:02.8]} 40. Nxe4 {[%clk 0:00:16.3]} 40... Nxe4
{[%clk 0:01:02.4]} 41. Rxb4 {[%clk 0:00:15]} 41... Rf2+ {[%clk 0:01:00.8]} 42.
Kg1 {[%clk 0:00:15.5]} 42... Rd2 {[%clk 0:01:00.5]} 43. Bf3 {[%clk 0:00:15.2]}
43... Ng5 {[%clk 0:00:46.9]} 44. Bg2 {[%clk 0:00:15.3]} 44... Re2 {[%clk
0:00:46.1]} 45. Nf1 {[%clk 0:00:13.9]} 45... Bxg4 {[%clk 0:00:44.9]} 46. Rxb6
{[%clk 0:00:14.2]} 46... Nf3+ {[%clk 0:00:34.8]} 47. Bxf3 {[%clk 0:00:13.3]}
47... Bxf3 {[%clk 0:00:35.7]} 48. Nh2 {[%clk 0:00:12.2]} 48... Rg2+ {[%clk
0:00:32.5]} 49. Kf1 {[%clk 0:00:11.3]} 49... Rxh2 {[%clk 0:00:31.5]} 50. Rxd6
{[%clk 0:00:12.2]} 50... Rc2 {[%clk 0:00:30.7]} 51. Rc6 {[%clk 0:00:12]} 51...
Be2+ {[%clk 0:00:28.7]} 52. Ke1 {[%clk 0:00:11.9]} 52... Bxc4 {[%clk 0:00:25.7]}
53. d6 {[%clk 0:00:10.9]} 53... Kf7 {[%clk 0:00:25.7]} 54. d7 {[%clk 0:00:07.4]}
54... Ke7 {[%clk 0:00:25]} 55. Rd6 {[%clk 0:00:05.1]} 55... Kd8 {[%clk
0:00:24.8]} 56. Rxg6 {[%clk 0:00:03.5]} 56... Bd3 {[%clk 0:00:21.9]} 57. Kd1
{[%clk 0:00:04.4]} 57... Bxg6 {[%clk 0:00:20.1]} 0-1

[Event "*** SCC Grand Prix: Titled Tuesday Blitz"]
[Site "Chess.com"]
[Date "2020.09.29"]
[Round "7"]
[White "Misticpikachu"]
[Black "Miss_JJ20"]
[Result "0-1"]
[WhiteElo "2316"]
[BlackElo "2458"]
[TimeControl "180+1"]
[EndTime "11:17:07 PDT"]
[Termination "Miss_JJ20 won on time"]

1. c4 {[%clk 0:02:44.4]} 1... e6 {[%clk 0:02:56.8]} 2. Nf3 {[%clk 0:02:43.9]}
2... Nf6 {[%clk 0:02:55.3]} 3. e3 {[%clk 0:02:44]} 3... c5 {[%clk 0:02:48.3]} 4.
Nc3 {[%clk 0:02:43.9]} 4... d5 {[%clk 0:02:46]} 5. cxd5 {[%clk 0:02:43.9]} 5...
exd5 {[%clk 0:02:46.1]} 6. d4 {[%clk 0:02:44.2]} 6... a6 {[%clk 0:02:46.7]} 7.
Be2 {[%clk 0:02:43.9]} 7... Nc6 {[%clk 0:02:46.4]} 8. O-O {[%clk 0:02:44.2]}
8... Bg4 {[%clk 0:02:38.2]} 9. dxc5 {[%clk 0:02:35.7]} 9... Bxc5 {[%clk
0:02:39.1]} 10. b3 {[%clk 0:02:33.8]} 10... O-O {[%clk 0:02:34.4]} 11. Bb2
{[%clk 0:02:32.8]} 11... Rc8 {[%clk 0:02:29.8]} 12. Rc1 {[%clk 0:02:27.2]} 12...
Ba7 {[%clk 0:02:24.8]} 13. Nd4 {[%clk 0:02:18.4]} 13... Bxe2 {[%clk 0:02:22.2]}
14. Ncxe2 {[%clk 0:02:17.5]} 14... Qd7 {[%clk 0:02:00.5]} 15. Nxc6 {[%clk
0:01:56.1]} 15... Rxc6 {[%clk 0:02:01.4]} 16. Rxc6 {[%clk 0:01:54.8]} 16... Qxc6
{[%clk 0:02:02.3]} 17. Bxf6 {[%clk 0:01:46.2]} 17... Qxf6 {[%clk 0:01:40.1]} 18.
Qxd5 {[%clk 0:01:45.1]} 18... b5 {[%clk 0:01:37.9]} 19. Nf4 {[%clk 0:01:18.9]}
19... Rd8 {[%clk 0:01:30.3]} 20. Qb7 {[%clk 0:01:18.2]} 20... Bb8 {[%clk
0:01:24.6]} 21. g3 {[%clk 0:00:39]} 21... Bxf4 {[%clk 0:01:21.2]} 22. exf4
{[%clk 0:00:39.6]} 22... h5 {[%clk 0:01:17.2]} 23. h4 {[%clk 0:00:37.7]} 23...
Rd2 {[%clk 0:01:10.1]} 24. a4 {[%clk 0:00:27.3]} 24... bxa4 {[%clk 0:00:53]} 25.
bxa4 {[%clk 0:00:28.2]} 25... g6 {[%clk 0:00:52.3]} 26. Qb4 {[%clk 0:00:18.4]}
26... Rd4 {[%clk 0:00:44.3]} 27. Qb8+ {[%clk 0:00:17.2]} 27... Kg7 {[%clk
0:00:44.3]} 28. a5 {[%clk 0:00:17.3]} 28... Ra4 {[%clk 0:00:38.9]} 29. Qc7
{[%clk 0:00:15.7]} 29... Qd4 {[%clk 0:00:35.7]} 30. Rb1 {[%clk 0:00:09.9]} 30...
Ra2 {[%clk 0:00:26.4]} 31. Rf1 {[%clk 0:00:09]} 31... Qd5 {[%clk 0:00:17]} 32.
Qc3+ {[%clk 0:00:07.5]} 32... Kh7 {[%clk 0:00:16.2]} 33. Qf6 {[%clk 0:00:05.6]}
33... Rxa5 {[%clk 0:00:15.2]} 34. Rc1 {[%clk 0:00:05.8]} 34... Rb5 {[%clk
0:00:11]} 35. Kh2 {[%clk 0:00:04.5]} 35... Rb8 {[%clk 0:00:06.9]} 36. Rc7 {[%clk
0:00:04]} 36... Rf8 {[%clk 0:00:07.5]} 37. Qe7 {[%clk 0:00:03.4]} 37... Kg8
{[%clk 0:00:07.4]} 38. Rc5 {[%clk 0:00:03.1]} 38... Qf3 {[%clk 0:00:07.2]} 39.
Rc2 {[%clk 0:00:02.1]} 39... a5 {[%clk 0:00:07.6]} 40. Qe3 {[%clk 0:00:01.8]}
40... Qxe3 {[%clk 0:00:06.8]} 41. fxe3 {[%clk 0:00:02.4]} 41... Ra8 {[%clk
0:00:07.7]} 42. Ra2 {[%clk 0:00:03.2]} 42... Kf8 {[%clk 0:00:07.7]} 43. Kg2
{[%clk 0:00:04.1]} 43... Ke7 {[%clk 0:00:08.4]} 44. Kf3 {[%clk 0:00:05]} 44...
f5 {[%clk 0:00:08.9]} 45. e4 {[%clk 0:00:04.8]} 45... fxe4+ {[%clk 0:00:09.8]}
46. Kxe4 {[%clk 0:00:05.6]} 46... Ke6 {[%clk 0:00:10.7]} 47. Kd4 {[%clk
0:00:05.3]} 47... a4 {[%clk 0:00:11.2]} 48. Ke4 {[%clk 0:00:05]} 48... a3 {[%clk
0:00:11.5]} 49. Ra1 {[%clk 0:00:05]} 49... a2 {[%clk 0:00:11.2]} 50. Ke3 {[%clk
0:00:04.6]} 50... Kf5 {[%clk 0:00:11.4]} 51. Kf2 {[%clk 0:00:04.3]} 51... Ra3
{[%clk 0:00:11.8]} 52. Kg2 {[%clk 0:00:02.8]} 52... Kg4 {[%clk 0:00:12.4]} 53.
Kh2 {[%clk 0:00:03.7]} 53... Kf3 {[%clk 0:00:09.6]} 54. Rf1+ {[%clk 0:00:02.5]}
54... Ke2 {[%clk 0:00:08.7]} 55. Ra1 {[%clk 0:00:03.4]} 55... Kd2 {[%clk
0:00:08.8]} 56. g4 {[%clk 0:00:03.3]} 56... hxg4 {[%clk 0:00:08.7]} 57. h5
{[%clk 0:00:02]} 57... gxh5 {[%clk 0:00:08.7]} 58. f5 {[%clk 0:00:02.9]} 58...
Kc2 {[%clk 0:00:09]} 59. f6 {[%clk 0:00:02.6]} 59... Kb2 {[%clk 0:00:08.9]} 60.
f7 {[%clk 0:00:03.5]} 60... Rf3 {[%clk 0:00:08.9]} 61. Rf1 {[%clk 0:00:01.3]}
61... Rxf1 {[%clk 0:00:08.9]} 0-1

[Event "*** SCC Grand Prix: Titled Tuesday Blitz"]
[Site "Chess.com"]
[Date "2020.09.29"]
[Round "7"]
[White "davidkalashian"]
[Black "anon102030"]
[Result "1-0"]
[WhiteElo "2594"]
[BlackElo "2734"]
[TimeControl "180+1"]
[EndTime "11:17:14 PDT"]
[Termination "davidkalashian won by checkmate"]

1. d4 {[%clk 0:02:57.6]} 1... Nf6 {[%clk 0:02:58.7]} 2. c4 {[%clk 0:02:56.6]}
2... e5 {[%clk 0:02:58.5]} 3. dxe5 {[%clk 0:02:56.2]} 3... Ng4 {[%clk
0:02:58.3]} 4. Bf4 {[%clk 0:02:55.8]} 4... Nc6 {[%clk 0:02:53.1]} 5. Nf3 {[%clk
0:02:55.1]} 5... Bb4+ {[%clk 0:02:52.7]} 6. Nbd2 {[%clk 0:02:54.3]} 6... Qe7
{[%clk 0:02:52.9]} 7. a3 {[%clk 0:02:54]} 7... Ngxe5 {[%clk 0:02:52.5]} 8. Nxe5
{[%clk 0:02:53.4]} 8... Nxe5 {[%clk 0:02:53.3]} 9. e3 {[%clk 0:02:53.6]} 9...
Bxd2+ {[%clk 0:02:52.8]} 10. Qxd2 {[%clk 0:02:53.6]} 10... d6 {[%clk 0:02:53.7]}
11. Be2 {[%clk 0:02:53.4]} 11... b6 {[%clk 0:02:47.5]} 12. Bxe5 {[%clk
0:02:38.9]} 12... Qxe5 {[%clk 0:02:30.4]} 13. Bf3 {[%clk 0:02:37.5]} 13... Rb8
{[%clk 0:02:30.6]} 14. Bc6+ {[%clk 0:02:35.1]} 14... Ke7 {[%clk 0:02:21.9]} 15.
O-O {[%clk 0:02:33.9]} 15... Be6 {[%clk 0:02:10.3]} 16. f4 {[%clk 0:02:20.7]}
16... Qc5 {[%clk 0:02:03.7]} 17. Bd5 {[%clk 0:02:19.3]} 17... b5 {[%clk
0:01:55.7]} 18. b4 {[%clk 0:02:11]} 18... Qb6 {[%clk 0:01:53.6]} 19. f5 {[%clk
0:01:48.3]} 19... Bxd5 {[%clk 0:01:48.6]} 20. cxd5 {[%clk 0:01:49.2]} 20... Kd7
{[%clk 0:01:43.8]} 21. Rac1 {[%clk 0:01:30.7]} 21... Rhe8 {[%clk 0:01:42.7]} 22.
Rf3 {[%clk 0:01:30.1]} 22... Re5 {[%clk 0:01:39.1]} 23. Rc6 {[%clk 0:01:28.9]}
23... Qb7 {[%clk 0:01:35.2]} 24. f6 {[%clk 0:01:28.9]} 24... g6 {[%clk
0:01:34.3]} 25. Qd4 {[%clk 0:01:20]} 25... Rbe8 {[%clk 0:01:27.1]} 26. Rf1
{[%clk 0:00:52.8]} 26... Rxe3 {[%clk 0:01:20.5]} 27. h3 {[%clk 0:00:21.3]} 27...
h5 {[%clk 0:01:17.3]} 28. Kh2 {[%clk 0:00:19.7]} 28... Re1 {[%clk 0:01:10]} 29.
Rf3 {[%clk 0:00:17.9]} 29... R8e4 {[%clk 0:01:06.3]} 30. Qd2 {[%clk 0:00:15.4]}
30... R1e2 {[%clk 0:00:58.5]} 31. Qh6 {[%clk 0:00:14.1]} 31... Re5 {[%clk
0:00:57.2]} 32. Rfc3 {[%clk 0:00:12.4]} 32... Rxd5 {[%clk 0:00:55.8]} 33. Qf8
{[%clk 0:00:11.8]} 33... Rxg2+ {[%clk 0:00:23.8]} 34. Kxg2 {[%clk 0:00:10.9]}
34... Rc5 {[%clk 0:00:24.5]} 35. Qxf7+ {[%clk 0:00:08.6]} 35... Kxc6 {[%clk
0:00:25.2]} 36. bxc5 {[%clk 0:00:08.7]} 36... b4 {[%clk 0:00:18.3]} 37. Qe8+
{[%clk 0:00:05.6]} 37... Kd5 {[%clk 0:00:18.6]} 38. axb4 {[%clk 0:00:05.2]}
38... Kd4+ {[%clk 0:00:16.8]} 39. Rf3 {[%clk 0:00:04.2]} 39... g5 {[%clk
0:00:12.2]} 40. f7 {[%clk 0:00:04.5]} 40... g4 {[%clk 0:00:11.9]} 41. Qe3+
{[%clk 0:00:05]} 41... Kc4 {[%clk 0:00:11.2]} 42. f8=Q {[%clk 0:00:04.4]} 42...
gxf3+ {[%clk 0:00:09.2]} 43. Qfxf3 {[%clk 0:00:05.3]} 43... Qxb4 {[%clk
0:00:05.7]} 44. Qee4+ {[%clk 0:00:04.9]} 44... Kxc5 {[%clk 0:00:05.8]} 45. Qxb4+
{[%clk 0:00:05.6]} 45... Kxb4 {[%clk 0:00:06.7]} 46. Qc6 {[%clk 0:00:06]} 46...
a5 {[%clk 0:00:04.8]} 47. Qxc7 {[%clk 0:00:06.4]} 47... d5 {[%clk 0:00:05.7]}
48. Qb6+ {[%clk 0:00:05.9]} 48... Ka4 {[%clk 0:00:05.1]} 49. Qd4+ {[%clk
0:00:05.8]} 49... Kb3 {[%clk 0:00:04.4]} 50. Qxd5+ {[%clk 0:00:06.7]} 50... Kb4
{[%clk 0:00:05.3]} 51. Qxh5 {[%clk 0:00:06.5]} 51... a4 {[%clk 0:00:06.2]} 52.
Qg4+ {[%clk 0:00:07.1]} 52... Kb3 {[%clk 0:00:06]} 53. Qf3+ {[%clk 0:00:07.4]}
53... Kb4 {[%clk 0:00:06]} 54. Qe4+ {[%clk 0:00:07.2]} 54... Kb3 {[%clk
0:00:06.2]} 55. Qb1+ {[%clk 0:00:08.1]} 55... Kc3 {[%clk 0:00:06]} 56. h4 {[%clk
0:00:08.3]} 56... a3 {[%clk 0:00:05.4]} 57. Qa2 {[%clk 0:00:09.2]} 57... Kb4
{[%clk 0:00:05.5]} 58. h5 {[%clk 0:00:10.1]} 58... Kc3 {[%clk 0:00:05]} 59. h6
{[%clk 0:00:11]} 59... Kb4 {[%clk 0:00:05]} 60. h7 {[%clk 0:00:11.9]} 60... Ka4
{[%clk 0:00:04.9]} 61. h8=Q {[%clk 0:00:11.5]} 61... Kb4 {[%clk 0:00:05.3]} 62.
Qd4+ {[%clk 0:00:11.3]} 62... Kb5 {[%clk 0:00:04.4]} 63. Qac4+ {[%clk
0:00:10.8]} 63... Ka5 {[%clk 0:00:02.6]} 64. Qa4# {[%clk 0:00:10.5]} 1-0

[Event "*** SCC Grand Prix: Titled Tuesday Blitz"]
[Site "Chess.com"]
[Date "2020.09.29"]
[Round "7"]
[White "Sibelephant"]
[Black "Andreikka"]
[Result "1/2-1/2"]
[WhiteElo "3048"]
[BlackElo "2857"]
[TimeControl "180+1"]
[EndTime "11:17:26 PDT"]
[Termination "Game drawn by repetition"]

1. d4 {[%clk 0:03:00]} 1... Nf6 {[%clk 0:02:59.9]} 2. Bg5 {[%clk 0:02:59]} 2...
e6 {[%clk 0:02:59.3]} 3. Nd2 {[%clk 0:02:58.7]} 3... c5 {[%clk 0:02:57.9]} 4. e3
{[%clk 0:02:58.2]} 4... b6 {[%clk 0:02:52.7]} 5. Ngf3 {[%clk 0:02:56.5]} 5...
Bb7 {[%clk 0:02:52.8]} 6. c3 {[%clk 0:02:56.6]} 6... h6 {[%clk 0:02:52.7]} 7.
Bh4 {[%clk 0:02:56.5]} 7... Be7 {[%clk 0:02:52.6]} 8. Bd3 {[%clk 0:02:56.8]}
8... O-O {[%clk 0:02:52.5]} 9. O-O {[%clk 0:02:56.6]} 9... d6 {[%clk 0:02:47.1]}
10. Qe2 {[%clk 0:02:55.5]} 10... Nbd7 {[%clk 0:02:46.4]} 11. e4 {[%clk
0:02:55.7]} 11... Nh5 {[%clk 0:02:46.3]} 12. Bxe7 {[%clk 0:02:55.1]} 12... Qxe7
{[%clk 0:02:46.8]} 13. Qe3 {[%clk 0:02:50.7]} 13... cxd4 {[%clk 0:02:38.1]} 14.
cxd4 {[%clk 0:02:50.1]} 14... Nhf6 {[%clk 0:02:31.5]} 15. a4 {[%clk 0:02:25.9]}
15... a6 {[%clk 0:02:26.9]} 16. h3 {[%clk 0:01:57.8]} 16... Rfc8 {[%clk
0:02:25.2]} 17. Qe2 {[%clk 0:01:54.7]} 17... Nh5 {[%clk 0:02:20.8]} 18. Qe3
{[%clk 0:01:50.6]} 18... Nhf6 {[%clk 0:02:20.7]} 19. Rfc1 {[%clk 0:01:50.3]}
19... Qd8 {[%clk 0:02:00.6]} 20. Nc4 {[%clk 0:01:40.6]} 20... Bxe4 {[%clk
0:01:59.6]} 21. Nxd6 {[%clk 0:01:35.8]} 21... Rxc1+ {[%clk 0:01:56.5]} 22. Rxc1
{[%clk 0:01:36.2]} 22... Bxd3 {[%clk 0:01:53]} 23. Qxd3 {[%clk 0:01:36.4]} 23...
Nf8 {[%clk 0:01:50.6]} 24. Rc6 {[%clk 0:01:35.3]} 24... Ng6 {[%clk 0:01:43.7]}
25. Ne5 {[%clk 0:01:13.7]} 25... Nxe5 {[%clk 0:01:36.9]} 26. dxe5 {[%clk
0:01:13.7]} 26... Nd5 {[%clk 0:01:37.5]} 27. Rc4 {[%clk 0:00:53.1]} 27... Qd7
{[%clk 0:01:33.1]} 28. Rg4 {[%clk 0:00:52.1]} 28... Rf8 {[%clk 0:01:22.9]} 29.
Qxa6 {[%clk 0:00:44.8]} 29... f6 {[%clk 0:01:08.9]} 30. Qe2 {[%clk 0:00:31.4]}
30... Rd8 {[%clk 0:00:34.9]} 31. Nb5 {[%clk 0:00:18.2]} 31... Rc8 {[%clk
0:00:29.9]} 32. exf6 {[%clk 0:00:16.9]} 32... Rc1+ {[%clk 0:00:28.9]} 33. Kh2
{[%clk 0:00:16.7]} 33... Nxf6 {[%clk 0:00:29.4]} 34. Rc4 {[%clk 0:00:14.9]}
34... Rd1 {[%clk 0:00:20.3]} 35. Rc7 {[%clk 0:00:08.6]} 35... Qd5 {[%clk
0:00:20.6]} 36. Qc2 {[%clk 0:00:05]} 36... Rd2 {[%clk 0:00:12.4]} 37. Rc8+
{[%clk 0:00:05.3]} 37... Kf7 {[%clk 0:00:12.7]} 38. Qc7+ {[%clk 0:00:05.8]}
38... Kg6 {[%clk 0:00:12.9]} 39. Qg3+ {[%clk 0:00:06.5]} 39... Kh7 {[%clk
0:00:11.4]} 40. Rc7 {[%clk 0:00:07.2]} 40... Nh5 {[%clk 0:00:11.9]} 41. Qe3
{[%clk 0:00:06.5]} 41... Rd3 {[%clk 0:00:10.2]} 42. Qc1 {[%clk 0:00:05.4]} 42...
Qe5+ {[%clk 0:00:07.1]} 43. Kh1 {[%clk 0:00:04.8]} 43... Nf4 {[%clk 0:00:07.7]}
44. Rc3 {[%clk 0:00:03.6]} 44... Qe4 {[%clk 0:00:05]} 45. f3 {[%clk 0:00:03.8]}
45... Qe5 {[%clk 0:00:02.2]} 46. Rxd3 {[%clk 0:00:03.9]} 46... Nxd3 {[%clk
0:00:03.1]} 47. Qc2 {[%clk 0:00:04.2]} 47... Qe1+ {[%clk 0:00:03.6]} 48. Kh2
{[%clk 0:00:04.1]} 48... Qe5+ {[%clk 0:00:04.3]} 49. g3 {[%clk 0:00:04.6]} 49...
Qe3 {[%clk 0:00:04.8]} 50. Nc3 {[%clk 0:00:02.9]} 50... Kh8 {[%clk 0:00:04.6]}
51. Qe2 {[%clk 0:00:03.1]} 51... Qd4 {[%clk 0:00:03.1]} 52. Qd2 {[%clk
0:00:01.5]} 52... Qc4 {[%clk 0:00:02.6]} 53. Ne4 {[%clk 0:00:01.8]} 53... Ne5
{[%clk 0:00:02.2]} 54. Kg2 {[%clk 0:00:02.2]} 54... Qb3 {[%clk 0:00:02.8]} 55.
Qc3 {[%clk 0:00:02.3]} 55... Qd5 {[%clk 0:00:02.3]} 56. Qd2 {[%clk 0:00:02.5]}
56... Qb3 {[%clk 0:00:02.3]} 57. Qc3 {[%clk 0:00:02.8]} 57... Qd5 {[%clk
0:00:02.8]} 58. h4 {[%clk 0:00:03.5]} 58... Kh7 {[%clk 0:00:02.2]} 59. Qc2
{[%clk 0:00:03.5]} 59... Kh8 {[%clk 0:00:02.6]} 60. Qd2 {[%clk 0:00:03.9]} 60...
Qb3 {[%clk 0:00:03.1]} 61. Nc3 {[%clk 0:00:04.2]} 61... Nc4 {[%clk 0:00:02.3]}
62. Qd8+ {[%clk 0:00:04.3]} 62... Kh7 {[%clk 0:00:03]} 63. Qd3+ {[%clk
0:00:04.1]} 63... Kh8 {[%clk 0:00:03.6]} 64. Qe2 {[%clk 0:00:04.3]} 64... Nxb2
{[%clk 0:00:03.5]} 65. Qd2 {[%clk 0:00:03.1]} 65... Nxa4 {[%clk 0:00:03.4]} 66.
Qd8+ {[%clk 0:00:03.2]} 66... Kh7 {[%clk 0:00:03.4]} 67. Qd3+ {[%clk 0:00:03.7]}
67... Kh8 {[%clk 0:00:03.3]} 68. Qd8+ {[%clk 0:00:03.7]} 68... Kh7 {[%clk
0:00:03.6]} 69. Qd3+ {[%clk 0:00:03.7]} 69... Kh8 {[%clk 0:00:03.6]} 70. Qd8+
{[%clk 0:00:04]} 1/2-1/2

[Event "*** SCC Grand Prix: Titled Tuesday Blitz"]
[Site "Chess.com"]
[Date "2020.09.29"]
[Round "7"]
[White "Unknown_IM"]
[Black "Makswolf200817"]
[Result "1-0"]
[WhiteElo "2324"]
[BlackElo "2419"]
[TimeControl "180+1"]
[EndTime "11:17:30 PDT"]
[Termination "Unknown_IM won by checkmate"]

1. e4 {[%clk 0:03:00.9]} 1... e6 {[%clk 0:02:59.3]} 2. d4 {[%clk 0:02:59.8]}
2... d5 {[%clk 0:02:58.2]} 3. Bd3 {[%clk 0:02:56.4]} 3... c5 {[%clk 0:02:57]} 4.
exd5 {[%clk 0:02:53.4]} 4... exd5 {[%clk 0:02:56.3]} 5. Nf3 {[%clk 0:02:50]}
5... c4 {[%clk 0:02:53.3]} 6. Be2 {[%clk 0:02:49.7]} 6... Nc6 {[%clk 0:02:52.1]}
7. b3 {[%clk 0:02:47.6]} 7... cxb3 {[%clk 0:02:48.1]} 8. axb3 {[%clk 0:02:46.8]}
8... Nf6 {[%clk 0:02:48.3]} 9. O-O {[%clk 0:02:45.6]} 9... Bd6 {[%clk 0:02:48]}
10. c4 {[%clk 0:02:43.7]} 10... O-O {[%clk 0:02:47.3]} 11. Nc3 {[%clk
0:02:40.9]} 11... h6 {[%clk 0:02:40.9]} 12. h3 {[%clk 0:02:26.2]} 12... Nb4
{[%clk 0:02:38.3]} 13. c5 {[%clk 0:02:22.4]} 13... Bc7 {[%clk 0:02:33]} 14. Ba3
{[%clk 0:02:21.4]} 14... Nc6 {[%clk 0:02:32.8]} 15. b4 {[%clk 0:02:21.1]} 15...
a6 {[%clk 0:02:31.9]} 16. b5 {[%clk 0:02:08.7]} 16... axb5 {[%clk 0:02:31.4]}
17. Nxb5 {[%clk 0:02:09.6]} 17... Bb8 {[%clk 0:02:28.2]} 18. Bb2 {[%clk
0:01:56.4]} 18... Rxa1 {[%clk 0:02:27.3]} 19. Qxa1 {[%clk 0:01:57.3]} 19... Re8
{[%clk 0:02:27.7]} 20. Bd3 {[%clk 0:01:57]} 20... Ne4 {[%clk 0:02:26.2]} 21. Ne5
{[%clk 0:01:47.5]} 21... Bxe5 {[%clk 0:02:22]} 22. dxe5 {[%clk 0:01:47.3]} 22...
Nxc5 {[%clk 0:02:21.9]} 23. Bc2 {[%clk 0:01:42.8]} 23... Qg5 {[%clk 0:02:18.3]}
24. Qa3 {[%clk 0:01:34.4]} 24... Ne6 {[%clk 0:02:06.5]} 25. Nd6 {[%clk
0:01:34.2]} 25... Rf8 {[%clk 0:02:06.5]} 26. g3 {[%clk 0:01:20.4]} 26... Qh5
{[%clk 0:02:01.4]} 27. Kg2 {[%clk 0:01:10.3]} 27... Nxe5 {[%clk 0:01:56.1]} 28.
g4 {[%clk 0:01:04.4]} 28... Nf4+ {[%clk 0:01:54.5]} 29. Kg3 {[%clk 0:01:01]}
29... Qg5 {[%clk 0:01:42.5]} 30. Qe3 {[%clk 0:00:49.6]} 30... Nh5+ {[%clk
0:01:32]} 31. Kh2 {[%clk 0:00:49.2]} 31... Bxg4 {[%clk 0:00:47.8]} 32. Bxe5
{[%clk 0:00:12.4]} 32... Qh4 {[%clk 0:00:43.4]} 33. f4 {[%clk 0:00:08.6]} 33...
Ra8 {[%clk 0:00:38.9]} 34. Qd3 {[%clk 0:00:08.2]} 34... g6 {[%clk 0:00:36.4]}
35. Bb2 {[%clk 0:00:08.6]} 35... Ra6 {[%clk 0:00:28.3]} 36. Qc3 {[%clk
0:00:06.3]} 36... f6 {[%clk 0:00:26.8]} 37. Nb5 {[%clk 0:00:03.7]} 37... Rc6
{[%clk 0:00:26.3]} 38. Qb3 {[%clk 0:00:02.2]} 38... Rxc2+ {[%clk 0:00:22]} 39.
Qxc2 {[%clk 0:00:03.1]} 39... Qxh3+ {[%clk 0:00:22.2]} 40. Kg1 {[%clk 0:00:04]}
40... Qg3+ {[%clk 0:00:22.5]} 41. Qg2 {[%clk 0:00:04.6]} 41... Qe3+ {[%clk
0:00:22.7]} 42. Qf2 {[%clk 0:00:05.3]} 42... Qb3 {[%clk 0:00:21.6]} 43. Nd4
{[%clk 0:00:05.2]} 43... Qc4 {[%clk 0:00:19]} 44. Re1 {[%clk 0:00:05.5]} 44...
Kf7 {[%clk 0:00:18.3]} 45. Qe3 {[%clk 0:00:05.2]} 45... Qc8 {[%clk 0:00:12.8]}
46. Qe7+ {[%clk 0:00:05]} 46... Kg8 {[%clk 0:00:13.3]} 47. Ba3 {[%clk
0:00:03.4]} 47... Nxf4 {[%clk 0:00:12]} 48. Qd6 {[%clk 0:00:03.6]} 48... Nh3+
{[%clk 0:00:11.6]} 49. Kh2 {[%clk 0:00:03.8]} 49... Bd7 {[%clk 0:00:09.3]} 50.
Rc1 {[%clk 0:00:03.7]} 50... Qe8 {[%clk 0:00:09]} 51. Re1 {[%clk 0:00:03.1]}
51... Qxe1 {[%clk 0:00:06.8]} 52. Qf8+ {[%clk 0:00:03.5]} 52... Kh7 {[%clk
0:00:07.7]} 53. Qf7+ {[%clk 0:00:04.1]} 53... Kh8 {[%clk 0:00:08.6]} 54. Qxf6+
{[%clk 0:00:04.8]} 54... Kh7 {[%clk 0:00:09.5]} 55. Qf7+ {[%clk 0:00:05.4]}
55... Kh8 {[%clk 0:00:10.2]} 56. Qf6+ {[%clk 0:00:05]} 56... Kh7 {[%clk
0:00:11.1]} 57. Qf7+ {[%clk 0:00:05.6]} 57... Kh8 {[%clk 0:00:12]} 58. Qxd7
{[%clk 0:00:06.2]} 58... Qf2+ {[%clk 0:00:11]} 59. Kxh3 {[%clk 0:00:06.8]} 59...
Qe3+ {[%clk 0:00:10.1]} 60. Kh2 {[%clk 0:00:06.3]} 60... Qd2+ {[%clk 0:00:10.3]}
61. Kg3 {[%clk 0:00:06]} 61... Qe3+ {[%clk 0:00:10.4]} 62. Nf3 {[%clk
0:00:06.5]} 62... Qxa3 {[%clk 0:00:10]} 63. Qxb7 {[%clk 0:00:06.8]} 63... Qd6+
{[%clk 0:00:09.5]} 64. Kg2 {[%clk 0:00:06.6]} 64... d4 {[%clk 0:00:09.9]} 65.
Qb2 {[%clk 0:00:07.1]} 65... Kh7 {[%clk 0:00:08.7]} 66. Nxd4 {[%clk 0:00:07.6]}
66... Qd5+ {[%clk 0:00:08.5]} 67. Nf3 {[%clk 0:00:08.2]} 67... h5 {[%clk
0:00:08.8]} 68. Qe2 {[%clk 0:00:08.6]} 68... Kh6 {[%clk 0:00:07.9]} 69. Qe7
{[%clk 0:00:09.2]} 69... Qf5 {[%clk 0:00:07.3]} 70. Qe3+ {[%clk 0:00:09.4]}
70... Kh7 {[%clk 0:00:07.1]} 71. Qe7+ {[%clk 0:00:09.5]} 71... Kh6 {[%clk
0:00:07.4]} 72. Qd8 {[%clk 0:00:10]} 72... Qg4+ {[%clk 0:00:07]} 73. Kf2 {[%clk
0:00:10.4]} 73... Qf4 {[%clk 0:00:07.1]} 74. Qh8# {[%clk 0:00:10.5]} 1-0